Cogmind - Beta 15 @@@ ROGUE MODE // 2025.07.01 @ 14:59:37 Player: SirusTheMadDJ Result: Destroyed by Autobeam Turret with Autobeam Performance ------------- Evolutions (0) 0 Regions Visited (2) 400 Robots Destroyed (18) 90 Value Destroyed (385) 385 Prototype IDs (0) 0 Alien Tech Used (0) 0 Bonus (0) 0 TOTAL SCORE: 875 Bonus ------- None Cogmind --------- Core Integrity 0/250 Matter 300/300 Energy 122/125 System Corruption 0% Temperature Cool (6) Movement Core (500) Ox9 Location -10/Subcaves Parts ------- > --- POWER (1) -------- Light Ion Engine > --- PROPULSION (2) --- (None) > --- UTILITY (2) ------ Large Storage Unit > --- WEAPON (2) ------- Medium Laser Grenade Launcher > --- INVENTORY (15) --- Small Storage Unit Visual Processing Unit Light Armor Plating Subdweller Beam Cannon Peak State ------------ > --- POWER ------------ Light Ion Engine > --- PROPULSION ------- Light Treads Light Treads > --- UTILITY ---------- Heat Sink Large Storage Unit > --- WEAPON ----------- Riot Gun Heavy Riot Gun > --- INVENTORY -------- Small Storage Unit Visual Processing Unit Light Armor Plating Medium Laser Subdweller Beam Cannon Grenade Launcher [Rating: 12] Favorites ----------- Power Ion Engine Engine Ion Engine Propulsion Aluminum Leg Treads Light Treads Leg Aluminum Leg Utility Heat Sink Device Heat Sink Storage Large Storage Unit Weapon Light Assault Rifle Energy Gun Heavy Riot Gun Energy Cannon Subdweller Beam Cannon Ballistic Gun Light Assault Rifle Ballistic Cannon Battle Cannon Launcher Grenade Launcher Build | -11 -10 -10 ------- Run | Yrd Mat Sub Slots Evolved . | . . . Power . | . . . Propulsion . | . . . Utility . | . . . Weapon . | . . . Parts Attached 24 | 6 6 12 Power 4 | 1 1 2 Engine 4 | 1 1 2 Core . | . . . Reactor . | . . . Propulsion 7 | 2 1 4 Treads 2 | . . 2 Leg 5 | 2 1 2 Wheel . | . . . Hover . | . . . Flight . | . . . Utility 4 | 1 3 . Device 1 | . 1 . Storage 3 | 1 2 . Processor . | . . . Hackware . | . . . Protection . | . . . Artifact . | . . . Weapon 9 | 2 1 6 Energy Gun 3 | . . 3 Energy Cannon 1 | . . 1 Ballistic Gun 3 | 2 1 . Ballistic Cannon 1 | . . 1 Launcher 1 | . . 1 Special Weapon . | . . . Impact Weapon . | . . . Slashing Weapon . | . . . Piercing Weapon . | . . . Special Melee Weapon . | . . . Unidentified Prototypes . | . . . Parts Lost 9 | . . 9 Power 2 | . . 2 Propulsion 4 | . . 4 Utility 1 | . . 1 Weapon 2 | . . 2 Highest Loss Streak 5 | . . 5 To Critical Strikes . | . . . Average Backups 6 | 1 6 6 Power . | . 1 . Propulsion 1 | . 2 . Utility 2 | . 1 3 Weapon 2 | . 1 2 Tool/Special . | . . . Unused Backups 2 | . . 2 Power . | . . . Propulsion . | . . . Utility 2 | . . 2 Weapon . | . . . Tool/Special . | . . . Average Slot Usage (%) 96 | . 94 98 Engine 13 | . 14 13 Treads 10 | . . 16 Leg 16 | . 27 10 Device 12 | . 9 13 Storage 14 | . 14 14 Energy Gun 4 | . . 6 Ballistic Gun 16 | . 28 9 Ballistic Cannon 6 | . . 10 Peak Build Rating 12 | 6 7 12 Average Rating 7 | 4 6 8 On Entrance 4 | . 6 7 Naked Turns . | . . . Heaviest Build 48 | 12 48 35 Greatest Support 40 | 20 20 40 Greatest Overweight (x) 3 | 3 2 2 Average Overweight (x) . | . . . Largest Inventory Capacity 20 | 8 20 15 Average Capacity 13 | 7 12 15 Most Carried 8 | 4 8 8 Average Carried 6 | 1 6 6 Final Capacity 15 | 8 15 15 Final Carried 8 | 4 8 4 Class Distribution -------------------- 97% | Mutant Dominant Class ---------------- Mutant | -10/Materials Mutant | -10/Subcaves Resources | -11 -10 -10 ----------- Run | Yrd Mat Sub Matter Collected 664 | 179 132 353 Remotely . | . . . Salvage Created 371 | . 132 239 Parts 29 | . 9 20 Haulers Intercepted . | . . . Recyclers Shooed . | . . . Parts Field Recycled . | . . . Retrieved Matter . | . . . Parts Self-Destructed 18 | . . 18 Prevented 1 | . . 1 Kills | -11 -10 -10 ------- Run | Yrd Mat Sub Combat Hostiles Destroyed 17 | . 5 12 Guns 10 | . 5 5 Cannons 3 | . . 3 AOE 4 | . . 4 Classes Destroyed 4 | . 3 1 Watcher 1 | . 1 . Swarmer 10 | . 3 7 Grunt 4 | . 2 2 Subdweller 3 | . . 3 Best Kill Streak 4 | . 3 4 Combat Bots Only 4 | . 3 4 Max Kills in Single Turn 2 | . 1 2 Gunslinging . | . . . Exploded 2 | . . 2 Melee . | . . . Uniques/NPCs Destroyed . | . . . Combat | -11 -10 -10 -------- Run | Yrd Mat Sub Hostile Shots Fired 176 | . 25 151 Missed 66 | . 10 56 Hits 110 | . 15 95 Projectile 110 | . 15 95 Critical Strikes 3 | . . 3 Damage Taken 1444 | . 132 1312 Core 254 | . 32 222 Absorbed by Shields . | . . . Regen/Repaired (Parts) 29 | . 29 . Core Remaining (%) 100 | 100 . . Volleys Fired 61 | . 18 43 Largest 2 | . 2 2 Hottest 130 | . 40 130 Shots Fired 103 | . 36 67 Gun 72 | . 36 36 Cannon 29 | . . 29 Launcher 2 | . . 2 Special . | . . . Kinetic 78 | . 36 42 Thermal 12 | . . 12 Explosive 2 | . . 2 Electromagnetic 11 | . . 11 Robot Hit Streak 9 | . 4 9 Robot Miss Streak 4 | . 2 4 Penetration Max . | . . . Secondary Targets 1 | . . 1 Max Gunslinging Chain 1 | . . 1 Shots Hit Robots 66 | . 22 44 Core Hits 29 | . 12 17 Critical Kills . | . . . Critical Parts Destroyed . | . . . Critical Strikes 1 | . . 1 Blast 1 | . . 1 Melee Attacks . | . . . Impact . | . . . Slashing . | . . . Piercing . | . . . Sneak Attacks . | . . . Combat Hostiles . | . . . Follow-up Attacks . | . . . Damage Inflicted 1040 | . 181 859 Guns 491 | . 181 310 Cannons 378 | . . 378 Explosions 171 | . . 171 Melee . | . . . Ramming . | . . . Kinetic 666 | . 181 485 Thermal 147 | . . 147 Explosive 126 | . . 126 Electromagnetic 101 | . . 101 Impact . | . . . Slashing . | . . . Piercing . | . . . Highest Corruption . | . . . Average Corruption . | . . . Corruption Purged . | . . . Corruption Blocked . | . . . Overload Shots . | . . . Overflow Damage 11 | . . 11 Projectiles 6 | . . 6 Explosions 5 | . . 5 Melee . | . . . Knockbacks 3 | . . 3 Impact . | . . . Kinetic 3 | . . 3 Secondary . | . . . Self-Inflicted Damage 45 | . . 45 Shots 1 | . . 1 Rammed . | . . . Targets Rammed . | . . . Kicked . | . . . Crushed . | . . . Highest Temperature 276 | . 6 276 Average Temperature 92 | . 6 121 Received Heat Transfer 1057 | . 30 1027 Siege Activations . | . . . Martial Activations . | . . . Shielding Activations . | . . . Robots Disrupted . | . . . Combat Hostiles . | . . . Robots Corrupted . | . . . Combat Hostiles . | . . . Parts Fried . | . . . Impact Corruptions . | . . . Robots Melted . | . . . Combat Hostiles . | . . . Parts Melted 1 | . . 1 Heat Transferred 235 | . . 235 Parts Sabotaged . | . . . Parts Stolen . | . . . Parts Stripped . | . . . Power Chain Reactions 1 | . . 1 Alert | -11 -10 -10 ------- Run | Yrd Mat Sub Maximum Alert Level . | . . . Low Security (%) 100 | 100 100 . Level 1 . | . . . Level 2 . | . . . Level 3 . | . . . Level 4 . | . . . Level 5 . | . . . High Security . | . . . Max Security . | . . . Peak Influence 60 | . 60 . Initial . | . . . Average 9 | . 10 . Influence Increases 420 | . 130 290 Destroy 0b10 Robot/C 280 | . 100 180 Destroy 0b10 Robot/NC 5 | . 5 . Destroy Leader 42 | . 22 20 Successful Hack 3 | . 3 . Lose Combat Pursuer 90 | . . 90 Influence Decreases 248 | . 130 118 Time Decay 178 | . 130 48 Lost Part 70 | . . 70 Squads Dispatched 2 | . 2 . Investigation 1 | . 1 . Extermination . | . . . Reinforcement 1 | . 1 . Assault . | . . . Garrison . | . . . Intercept . | . . . Searches Triggered . | . . . Construction Impeded . | . . . Haulers Reinforced . | . . . Active Scanning Responses . | . . . Cargo Convoy Interrupts . | . . . Stealth | -11 -10 -10 --------- Run | Yrd Mat Sub Distress Signals 2 | . 2 . Communications Jammed . | . . . Distress Signals . | . . . Times Spotted 30 | . 11 19 Peak Tracking Total 6 | . 5 6 Tactical Retreats 3 | . . 3 Traps | -11 -10 -10 ------- Run | Yrd Mat Sub Traps Triggered 4 | . 1 3 Indirectly . | . . . Trap Hack Attempts . | . . . Triggered . | . . . Disarmed . | . . . Reprogrammed . | . . . Reused . | . . . Traps Extracted . | . . . Installed . | . . . Triggered . | . . . Machines | -11 -10 -10 ---------- Run | Yrd Mat Sub Machines Disabled . | . . . Max in Single Turn . | . . . Machines Repaired . | . . . Machines Dismantled . | . . . Machines Sabotaged . | . . . Overloaded Fab Kills . | . . . Hacking | -11 -10 -10 --------- Run | Yrd Mat Sub Machines Accessed 3 | . 2 1 Terminals . | . . . Fabricators . | . . . Repair Stations 1 | . 1 . Recycling Units 1 | . 1 . Scanalyzers . | . . . Garrison Access . | . . . Total Hacks 8 | . 5 3 Successful 7 | . 4 3 Failed 1 | . 1 . Catastrophic . | . . . Database Lockouts . | . . . Manual 1 | . . 1 Terminals . | . . . Fabricators . | . . . Repair Stations 3 | . 3 . Recycling Units 2 | . 2 . Scanalyzers . | . . . Garrison Access . | . . . Terminal Hacks 3 | . . 3 Record 3 | . . 3 Fabricator Hacks . | . . . Repair Station Hacks 2 | . 2 . Scan Component 1 | . 1 . Repair 1 | . 1 . Recycling Unit Hacks 2 | . 2 . Process 1 | . 1 . Report Inventory 1 | . 1 . Scanalyzer . | . . . Garrison Access Hacks . | . . . Unauthorized Hacks . | . . . Terminals . | . . . Fabricators . | . . . Repair Stations . | . . . Recycling Units . | . . . Scanalyzers . | . . . Garrison Access . | . . . Data Cores Recovered . | . . . Used . | . . . Hacking Detections . | . . . Full Trace Events . | . . . Feedback Events . | . . . Feedback Blocked . | . . . Robot Schematics Acquired . | . . . Robots Built . | . . . Authchips . | . . . Time . | . . . Total Robot Build Rating . | . . . Part Schematics Acquired . | . . . Parts Built . | . . . Authchips . | . . . Time . | . . . Total Part Build Rating . | . . . Parts Repaired 1 | . 1 . Time 26 | . 26 . Parts Recycled . | . . . Recycled Matter 4 | . 4 . Retrieved Matter . | . . . Retrieved Components . | . . . Parts Scanalyzed . | . . . Part Schematics Acquired . | . . . Parts Damaged . | . . . Bothacking | -11 -10 -10 ------------ Run | Yrd Mat Sub Used RIF Installer . | . . . Robots Hacked . | . . . Non-combat . | . . . Combat . | . . . Robot Hacks Applied . | . . . Relay Couplers Released . | . . . Fabnet Peak Effective % . | . . . Robots Rewired . | . . . Allies Hacked . | . . . Hacks Repelled . | . . . Allies | -11 -10 -10 -------- Run | Yrd Mat Sub Total Allies . | . . . Largest Group . | . . . Highest-Rated Group . | . . . Highest-Rated Ally . | . . . Total Orders . | . . . Ally Attacks . | . . . Total Damage . | . . . Kills . | . . . Allies Corrupted . | . . . Allies Melted . | . . . Intel | -11 -10 -10 ------- Run | Yrd Mat Sub Active Infowar (turns) . | . . . Robot Analysis Total . | . . . Derelict Logs Recovered . | . . . Drone Launches . | . . . Drone Recoveries . | . . . Exploration | -11 -10 -10 ------------- Run | Yrd Mat Sub Turns Passed 1848 | 64 647 1137 Spaces Moved 909 | 43 281 585 Core 6 | 6 . . Treads 399 | . . 399 Legs 504 | 37 281 186 Wheels . | . . . Hover . | . . . Flight . | . . . Fastest Speed 50 | 50 120 160 Average Speed 163 | 120 155 170 Slowest Speed 260 | 200 260 260 Overloaded Moves . | . . . Propulsion Burnouts . | . . . Robots Hopped . | . . . Potential Cave-ins . | . . . Cave-ins Triggered . | . . . Exploration Rate (%) 27 | 5 32 45 Regions Visited 2 Branch Regions 1 Pre-discovered Areas . | . . . Known Exits Taken . | . . . Unknown Exits Taken 2 | 1 1 . Scrap Searched . | . . . Spaces Dug . | . . . Terrain Destroyed 17 | . . 17 Melee . | . . . Projectile 3 | . . 3 AOE 14 | . . 14 Terrain Rammed . | . . . Walls Destroyed . | . . . Machines Disabled . | . . . Actions | -11 -10 -10 --------- Run | Yrd Mat Sub Total 1165 | 52 462 651 Wait 147 | . 145 2 Move 907 | 42 280 585 Hop . | . . . Pick Up 11 | 4 6 1 Fast Attach 15 | 6 3 6 Attach 5 | . . 5 Detach 1 | . . 1 Swap 8 | . 5 3 Drop 10 | . 5 5 Fire 61 | . 18 43 Melee . | . . . Ram . | . . . Kick . | . . . Crush . | . . . Escape Stasis . | . . . Rewire . | . . . Trap . | . . . Miscellaneous . | . . . Route ------- -11/Scrapyard -10/Materials -10/Subcaves (discovered 1 exit: [*Rec]) History --------- Turn | Location | Event 15 | -11/Scrapyard | Discovered new exit (range 15) 65 | -11/Scrapyard | Entered Materials 220 | -10/Materials | Repaired Aluminum Leg 300 | -10/Materials | Build established: Mutant 629 | -10/Materials | Discovered new exit (range 4) 712 | -10/Materials | Entered Subcaves 723 | -10/Subcaves | Shifting Twisted Machinery released Spk. Treads 723 | -10/Subcaves | Shifting Twisted Machinery released Battle Cannon 1070 | -10/Subcaves | Core integrity fell below 50% 1484 | -10/Subcaves | Visited Clippyterm 1489 | -10/Subcaves | Learned Factory emergency access door positions 1819 | -10/Subcaves | Core integrity fell below 20% 1845 | -10/Subcaves | Discovered new exit (range 16) 1849 | -10/Subcaves | Destroyed by Autobeam Turret with Autobeam Last Messages --------------- Lgt. Ion Engine destroyed. Riot Gun destroyed. Flight Unit melted. S-10 Pest destroyed. Destroyed Flight Unit. Lgt. Ion Engine fries itself beyond repair. S-10 Pest destroyed. Subatomizers dissect the Flight Unit. Sub. Beam Cannon shoots sparks and powers down. Lgt. Assault Rifle fries itself beyond repair. Acquired 13 matter. Acquired Lgt. Ion Engine. Heat Sink destroyed. Flight Unit fries itself beyond repair. Aluminum Leg destroyed. S-10 Pest destroyed. Acquired 16 matter. EXIT=FOUND Aluminum Leg destroyed. Lgt. Ion Engine fries itself beyond repair. Map ----- +----------------------------------------------------+ | ?????????????????????????????????????????????????? | | ?????????????????????????????????????????????????? | | ?????????????????????????????????????????????????? | | ?????????????????????????????????????????????????# | | ?????????????????????????????????????#??########## | | ?????????????????????????????????????# # # # | | ?????????????????????????????????????# | | ????????????????????????????????????# | | ???????????????????????????????????# # | | ????????????????????????????????????? ????### | | ????????????????????????????????????????????# | | ????????????????????????##??????????????????## | | ????????????????????????# ?????????????????# | | ????????????????????????# ??????? ##??????# | | ????????????????????????# ???#?? #?????## | | ????????????????????????? ?? ## #?????# # | | ????????????????????????? ? ## ##???## | | ????????????????????????? ? #???# | | ?????????????????#??#????? ?? #???# # | | ?????????????????? ?# ???? ??# #??## # | | ???????????? ??? # ??## ?## #??## # | | ???????????" ##? ??# ?# #### # | | ???????????""t ?# ?? ## ## | | ??????????< % ## #### | | ???????????""t ;## | | ?????????????????# @ | | ?????????????????# % | | ?????????????????# # # % | | ?????????????????# #?###;## | | ????????????????# ?????#### ## | | ??????????????? ??????????#" ## | | ??????????????# ??????????##" ## #? | | ??????????????#????????????#" = ####### # | | ???????????????????????????#" "#?????# | | ???????????????????????????## ####?????# | | ????????????????????????????###????????# ##### | | ???????????????????????????????????????####???#### | | ?????????????????????????????????????????????????? | | ?????????????????????????????????????????????????? | | ?????????????????????????????????????????????????? | | ?????????????????????????????????????????????????? | | ?????????????????????????????????????????????????? | | ?????????????????????????????????????????????????? | | ?????????????????????????????????????????????????? | | ?????????????????????????????????????????????????? | | ?????????????????????????????????????????????????? | | ?????????????????????????????????????????????????? | | ?????????????????????????????????????????????????? | | ?????????????????????????????????????????????????? | | ?????????????????????????????????????????????????? | +----------------------------------------------------+ Best States ------------- Heat Dissipation 35 Energy Generation 10 Energy Capacity 250 Matter Stores 294 Matter Capacity 300 Sight Range 16 Terrain Scan Density 10 Evasion (%) 55 Recoil Reduction 2 Item Schematics ----------------- None Robot Schematics ------------------ None Fabricated ------------ Nothing Repaired ---------- Aluminum Leg | 67% | -10/Materials Alien Tech Used ----------------- None Achievements -------------- None Challenges ------------ None Game ------ Seed AdvancedHackingSword Manual? 0 Play Time 00:15:27 Cumulative 14.3 hours Start 2025.07.01 @ 14:45:47 End 2025.07.01 @ 14:59:37 Sessions 1 Manual Loads 0 Difficulty Rogue Special Mode None Game No. 33 Rogue 33 Adventurer 0 Explorer 0 Win Type - Total 0 Types 0/0/0/0/0/0/0/0/0/0 Lore% 5 Gallery% 16 Achievement% 16 Wizard Run 0 Options --------- Layout 1 ASCII 0 Keyboard 0 Movement Mouse Keybinds 0 Fullscreen 1 Font 24/Smallcaps Map View 50x35 Zoom Use 0% Tactical HUD 0 Map Filters NONE Filters NONE Steam 1 RUN: dc01d116-b80f-4fee-b7b4-9f3cb0622e68